fUSD/lending_fUSD_20260617
["ID","MTS","AMOUNT","RATE_DAILY","PERIOD"]
[425324984,1781696551000,-406.37731511,0.00029134,7]
[425324981,1781696551000,-412.76542326,0.00029128,7]
[425324979,1781696551000,-223.6794415,0.00029128,7]
[425325019,1781696551000,-196.05401877,0.00029153,5]
[425325020,1781696551000,-196.76682747,0.00029153,7]
[425325018,1781696551000,-198.62962412,0.00029153,7]
[425325022,1781696551000,-189.2831374,0.00029153,7]
[425325021,1781696551000,-216.69615982,0.00029153,5]
[425325025,1781696551000,-202.62900276,0.00029153,7]
[425325028,1781696551000,-150.39539877,0.00029153,7]
[425325027,1781696551000,-230.95331308,0.00029153,7]
[425325032,1781696551000,-225.47550499,0.00029153,7]
[425325030,1781696551000,-245.6203648,0.00029153,7]
[425325029,1781696551000,-249.22485625,0.00029153,7]
[425325034,1781696551000,-233.0234632,0.00029153,7]
[425325017,1781696551000,-150.0,0.0002915,30]
[425325024,1781696551000,-205.78153488,0.00029153,7]
[425325035,1781696551000,-232.01294771,0.00029153,7]
[425325031,1781696551000,-202.69981592,0.00029153,7]
[425325033,1781696551000,-225.79632064,0.00029153,7]
[425325043,1781696551000,-234.21723798,0.00029153,7]
[425325038,1781696551000,-194.47476297,0.00029153,7]
[425325037,1781696551000,-218.69658761,0.00029153,7]
[425325036,1781696551000,-217.74934537,0.00029153,7]
[425325044,1781696551000,-201.61012856,0.00029167,30]
[425325042,1781696551000,-165.71292312,0.00029153,7]
[425325041,1781696551000,-225.43118096,0.00029153,2]
[425324985,1781696551000,-219.40493583,0.00029134,7]
[425325040,1781696551000,-249.41930434,0.00029153,2]
[425325026,1781696551000,-229.21602369,0.00029153,7]
[425325016,1781696551000,-150.0,0.00029147,30]
[425325039,1781696551000,-226.39764101,0.00029153,2]
[425325014,1781696551000,-150.0,0.00029139,30]
[425325012,1781696551000,-201.61012856,0.00029136,30]
[425324999,1781696551000,-214.25531322,0.00029134,7]
[425324988,1781696551000,-476.92252255,0.00029134,7]
[425324990,1781696551000,-520.08296079,0.00029134,7]
[425324997,1781696551000,-236.01949039,0.00029134,7]
[425324991,1781696551000,-223.34662081,0.00029134,7]
[425324992,1781696551000,-236.16929309,0.00029134,7]
[425324996,1781696551000,-281.77367428,0.00029134,7]
[425324995,1781696551000,-660.25870345,0.00029134,7]
[425324993,1781696551000,-226.89422678,0.00029134,7]
[425324994,1781696551000,-519.84739699,0.00029134,7]
[425324998,1781696551000,-213.15490276,0.00029134,7]
[425325001,1781696551000,-220.8749091,0.00029134,7]
[425324989,1781696551000,-228.60821958,0.00029134,7]
[425325000,1781696551000,-230.68835716,0.00029134,7]
[425325011,1781696551000,-205.66495131,0.00029134,2]
[425325015,1781696551000,-150.0,0.00029142,30]
[425325013,1781696551000,-616.09402875,0.00029136,30]
[425325003,1781696551000,-168.35468488,0.00029134,7]
[425325008,1781696551000,-235.50510015,0.00029134,7]
[425325007,1781696551000,-202.33211592,0.00029134,7]
[425325023,1781696551000,-204.58245068,0.00029153,7]
[425325002,1781696551000,-220.49200538,0.00029134,7]
[425325010,1781696551000,-253.35791119,0.00029134,7]
[425325006,1781696551000,-249.52945176,0.00029134,7]
[425325005,1781696551000,-255.82508754,0.00029134,7]
[425325009,1781696551000,-236.10882355,0.00029134,7]
[425325004,1781696551000,-218.32322346,0.00029134,7]
[425325086,1781696552000,-150.0,0.00029307,30]
[425325083,1781696552000,-616.09402875,0.00029288,30]
[425325082,1781696552000,-201.61012856,0.00029288,30]
[425325081,1781696552000,-150.0,0.0002928,30]
[425325074,1781696552000,-550.187612,0.00029264,7]
[425325079,1781696552000,-150.0,0.00029271,30]
[425325071,1781696552000,-550.187612,0.00029264,7]
[425325075,1781696552000,-159.453919,0.00029264,7]
[425325085,1781696552000,-150.0,0.00029303,30]
[425325077,1781696552000,-159.453919,0.00029264,7]
[425325076,1781696552000,-159.453919,0.00029264,7]
[425325092,1781696552000,-201.61012856,0.00029349,30]
[425325087,1781696552000,-201.61012856,0.00029319,30]
[425325091,1781696552000,-150.0,0.0002934,30]
[425325088,1781696552000,-616.09402875,0.00029319,30]
[425325084,1781696552000,-1943.3,0.000293,7]
[425325090,1781696552000,-150.0,0.00029334,30]
[425325095,1781696552000,-150.0,0.00029365,30]
[425325094,1781696552000,-150.0,0.00029357,30]
[425325093,1781696552000,-616.09402875,0.00029349,30]
[425325101,1781696552000,-150.0,0.00029407,30]
[425325098,1781696552000,-201.61012856,0.0002938,30]
[425325096,1781696552000,-150.0,0.00029368,30]
[425325073,1781696552000,-550.187612,0.00029264,7]
[425325089,1781696552000,-150.0,0.00029324,30]
[425325078,1781696552000,-159.453919,0.00029264,7]
[425325051,1781696552000,-201.61012856,0.00029197,30]
[425325072,1781696552000,-550.187612,0.00029264,7]
[425325046,1781696552000,-2355.0,0.0002917,3]
[425325045,1781696552000,-616.09402875,0.00029167,30]
[425325047,1781696552000,-150.0,0.00029173,30]
[425325048,1781696552000,-233.37,0.00029175,2]
[425325049,1781696552000,-150.0,0.00029178,30]
[425325058,1781696552000,-616.09402875,0.00029228,30]
[425325059,1781696552000,-273.0,0.00029237,2]
[425325050,1781696552000,-150.0,0.00029193,30]
[425325053,1781696552000,-150.0,0.00029206,30]
[425325052,1781696552000,-616.09402875,0.00029197,30]
[425325054,1781696552000,-150.0,0.00029209,30]
[425325057,1781696552000,-201.61012856,0.00029228,30]
[425325056,1781696552000,-964.13,0.00029228,2]
[425325055,1781696552000,-3754.95125807,0.00029216,2]
[425325060,1781696552000,-150.0,0.00029237,30]
[425325063,1781696552000,-150.0,0.00029249,30]
[425325061,1781696552000,-150.0,0.0002924,30]
[425325062,1781696552000,-150.0,0.0002924,30]
[425325064,1781696552000,-201.61012856,0.00029258,30]
[425325065,1781696552000,-616.09402875,0.00029258,30]
[425325066,1781696552000,-26864.43140295,0.00029264,7]
[425325067,1781696552000,-212.623813,0.00029264,7]
[425325069,1781696552000,-212.623813,0.00029264,7]
[425325068,1781696552000,-212.623813,0.00029264,7]
[425325070,1781696552000,-212.623813,0.00029264,7]
[425325080,1781696552000,-150.0,0.00029273,30]
[425325097,1781696552000,-150.0,0.00029374,30]
[425325102,1781696552000,-201.61012856,0.0002941,30]
[425325099,1781696552000,-616.09402875,0.0002938,30]
[425325137,1781696552000,-201.61012856,0.00029593,30]
[425325132,1781696552000,-150.0,0.00029582,30]
[425325134,1781696552000,-3000.0,0.00029589,12]
[425325135,1781696552000,-597.17105034,0.00029589,12]
[425325136,1781696552000,-1359.23057641,0.0002959,4]
[425325133,1781696552000,-150.0,0.00029586,30]
[425325139,1781696552000,-150.0,0.00029608,30]
[425325138,1781696552000,-616.09402875,0.00029593,30]
[425325140,1781696552000,-150.0,0.00029608,30]
[425325142,1781696552000,-150.0,0.00029613,30]
[425325147,1781696552000,-150.0,0.00029641,30]
[425325145,1781696552000,-150.0,0.0002963,30]
[425325144,1781696552000,-616.09402875,0.00029623,30]
[425325143,1781696552000,-201.61012856,0.00029623,30]
[425325146,1781696552000,-239.63353567,0.00029634,4]
[425325148,1781696552000,-150.0,0.00029644,30]
[425325150,1781696552000,-233.37,0.00029651,7]
[425325149,1781696552000,-1286.01003347,0.00029648,2]
[425325151,1781696552000,-201.61012856,0.00029653,30]
[425325155,1781696552000,-150.0,0.00029675,30]
[425325156,1781696552000,-150.0,0.00029679,30]
[425325154,1781696552000,-150.0,0.00029675,30]
[425325152,1781696552000,-616.09402875,0.00029653,30]
[425325153,1781696552000,-150.0,0.00029673,30]
[425325100,1781696552000,-150.0,0.00029396,30]
[425325129,1781696552000,-616.09402875,0.00029562,30]
[425325130,1781696552000,-150.0,0.00029572,30]
[425325141,1781696552000,-273.0,0.00029612,2]
[425325127,1781696552000,-150.0,0.00029551,30]
[425325131,1781696552000,-150.0,0.00029574,30]
[425325111,1781696552000,-150.0,0.00029458,30]
[425325104,1781696552000,-150.0,0.00029411,30]
[425325105,1781696552000,-150.0,0.00029427,30]
[425325103,1781696552000,-616.09402875,0.0002941,30]
[425325108,1781696552000,-150.0,0.0002944,30]
[425325109,1781696552000,-616.09402875,0.0002944,30]
[425325112,1781696552000,-150.0,0.00029464,30]
[425325106,1781696552000,-150.0,0.0002944,30]
[425325107,1781696552000,-201.61012856,0.0002944,30]
[425325114,1781696552000,-616.09402875,0.00029471,30]
[425325122,1781696552000,-201.61012856,0.00029532,30]
[425325113,1781696552000,-201.61012856,0.00029471,30]
[425325110,1781696552000,-150.0,0.00029455,30]
[425325125,1781696552000,-150.0,0.00029542,30]
[425325123,1781696552000,-616.09402875,0.00029532,30]
[425325128,1781696552000,-201.61012856,0.00029562,30]
[425325120,1781696552000,-150.0,0.00029507,30]
[425325119,1781696552000,-616.09402875,0.00029501,30]
[425325117,1781696552000,-150.0,0.00029499,30]
[425325126,1781696552000,-350.06,0.00029544,7]
[425325124,1781696552000,-150.0,0.00029541,30]
[425325121,1781696552000,-150.0,0.0002952,30]
[425325116,1781696552000,-150.0,0.00029489,30]
[425325115,1781696552000,-150.0,0.00029474,30]
[425325118,1781696552000,-201.61012856,0.00029501,30]
[425325201,1781696553000,-446.69324162,0.00029703,7]
[425325204,1781696553000,-418.8938871,0.00029703,7]
[425325200,1781696553000,-693.44394772,0.00029703,7]
[425325183,1781696553000,-494.58590763,0.00029697,7]
[425325192,1781696553000,-229.71518198,0.00029703,7]
[425325191,1781696553000,-350.0,0.000297,30]
[425325190,1781696553000,-1943.3,0.000297,7]
[425325189,1781696553000,-727.6950559,0.00029697,7]
[425325187,1781696553000,-658.35448893,0.00029697,7]
[425325194,1781696553000,-203.18865755,0.00029703,7]
[425325188,1781696553000,-619.14813489,0.00029697,7]
[425325196,1781696553000,-635.89669674,0.00029703,7]
[425325202,1781696553000,-673.27380877,0.00029703,7]
[425325195,1781696553000,-438.80987166,0.00029703,7]
[425325197,1781696553000,-424.25142858,0.00029703,7]
[425325198,1781696553000,-420.99143257,0.00029703,7]
[425325203,1781696553000,-457.21643915,0.00029703,7]
[425325206,1781696553000,-693.12986266,0.00029703,7]
[425325205,1781696553000,-472.33858618,0.00029703,7]
[425325216,1781696553000,-440.98401077,0.00029703,7]
[425325207,1781696553000,-880.34493794,0.00029703,7]
[425325208,1781696553000,-427.45002542,0.00029703,7]
[425325209,1781696553000,-563.54734855,0.00029703,7]
[425325193,1781696553000,-429.70904658,0.00029703,7]
[425325199,1781696553000,-453.78845357,0.00029703,7]
[425325185,1781696553000,-623.75017804,0.00029697,7]
[425325212,1781696553000,-428.51062644,0.00029703,7]
[425325184,1781696553000,-712.4744517,0.00029697,7]
[425325160,1781696553000,-386.55591139,0.00029697,7]
[425325158,1781696553000,-616.09402875,0.00029684,30]
[425325157,1781696553000,-201.61012856,0.00029684,30]
[425325159,1781696553000,-463.12723611,0.00029697,7]
[425325162,1781696553000,-300.79079754,0.00029697,7]
[425325163,1781696553000,-491.24072961,0.00029697,7]
[425325165,1781696553000,-697.43743372,0.00029697,7]
[425325161,1781696553000,-464.74727253,0.00029697,7]
[425325170,1781696553000,-622.57095228,0.00029697,2]
[425325168,1781696553000,-452.79528203,0.00029697,2]
[425325167,1781696553000,-736.02689517,0.00029697,7]
[425325169,1781696553000,-437.39317523,0.00029697,7]
[425325166,1781696553000,-633.33879631,0.00029697,7]
[425325171,1781696553000,-388.94952594,0.00029697,7]
[425325173,1781696553000,-450.86236193,0.00029697,2]
[425325175,1781696553000,-151.22218563,0.00029697,7]
[425325177,1781696553000,-159.98959902,0.00029697,2]
[425325172,1781696553000,-498.83860868,0.00029697,2]
[425325174,1781696553000,-407.91833247,0.00029697,7]
[425325178,1781696553000,-232.87883147,0.00029697,7]
[425325176,1781696553000,-304.16737871,0.00029697,7]
[425325180,1781696553000,-436.20913464,0.00029697,7]
[425325182,1781696553000,-350.09250233,0.00029697,7]
[425325179,1781696553000,-707.93516958,0.00029697,7]
[425325181,1781696553000,-688.26938845,0.00029697,7]
[425325186,1781696553000,-447.35888299,0.00029697,7]
[425325211,1781696553000,-426.30980553,0.00029703,7]
[425325164,1781696553000,-697.57752605,0.00029697,7]
[425325215,1781696553000,-297.95197213,0.00029703,7]
[425325248,1781696553000,-159.94155698,0.00029722,7]
[425325243,1781696553000,-411.56306975,0.00029722,7]
[425325241,1781696553000,-409.16490135,0.00029722,7]
[425325245,1781696553000,-161.17536081,0.00029722,7]
[425325247,1781696553000,-160.3876876,0.00029722,7]
[425325251,1781696553000,-461.90662617,0.00029722,7]
[425325246,1781696553000,-237.47866217,0.00029722,7]
[425325252,1781696553000,-174.08276585,0.00029722,7]
[425325253,1781696553000,-159.67155246,0.00029722,7]
[425325263,1781696553000,-165.49040856,0.00029722,2]
[425325254,1781696553000,-247.21875952,0.00029722,7]
[425325255,1781696553000,-233.97262355,0.00029722,7]
[425325257,1781696553000,-165.64447569,0.00029722,7]
[425325260,1781696553000,-405.39963185,0.00029722,7]
[425325262,1781696553000,-426.66196277,0.00029722,7]
[425325259,1781696553000,-450.95100998,0.00029722,7]
[425325258,1781696553000,-392.23222405,0.00029722,7]
[425325256,1781696553000,-498.44971249,0.00029722,7]
[425325269,1781696553000,-429.30944176,0.00029722,7]
[425325261,1781696553000,-226.39028697,0.00029722,7]
[425325264,1781696553000,-377.62593374,0.00029722,7]
[425325267,1781696553000,-464.02589543,0.00029722,7]
[425325265,1781696553000,-451.59264128,0.00029722,7]
[425325266,1781696553000,-466.04692639,0.00029722,7]
[425325268,1781696553000,-311.31878383,0.00029722,7]
[425325249,1781696553000,-405.25800553,0.00029722,7]
[425325250,1781696553000,-458.43204737,0.00029722,7]
[425325210,1781696553000,-472.03898078,0.00029703,7]
[425325242,1781696553000,-265.84282166,0.00029722,7]
[425325213,1781696553000,-461.37671432,0.00029703,7]
[425325214,1781696553000,-441.74981821,0.00029703,7]
[425325217,1781696553000,-336.70936977,0.00029703,7]
[425325220,1781696553000,-499.05890353,0.00029703,7]
[425325219,1781696553000,-511.65017508,0.00029703,7]
[425325221,1781696553000,-404.66423184,0.00029703,7]
[425325224,1781696553000,-472.21764709,0.00029703,7]
[425325222,1781696553000,-471.01020031,0.00029703,7]
[425325223,1781696553000,-411.32990262,0.00029703,2]
[425325226,1781696553000,-150.0,0.00029706,30]
[425325218,1781696553000,-436.64644692,0.00029703,7]
[425325227,1781696553000,-150.0,0.00029708,30]
[425325225,1781696553000,-506.71582238,0.00029703,7]
[425325244,1781696553000,-336.22379329,0.00029722,7]
[425325229,1781696553000,-616.09402875,0.00029714,30]
[425325228,1781696553000,-201.61012856,0.00029714,30]
[425325231,1781696553000,-245.70421563,0.00029722,7]
[425325233,1781696553000,-392.10803754,0.00029722,5]
[425325230,1781696553000,-150.0,0.00029717,30]
[425325235,1781696553000,-201.37116919,0.00029722,7]
[425325232,1781696553000,-397.25924823,0.00029722,7]
[425325240,1781696553000,-227.38575425,0.00029722,7]
[425325239,1781696553000,-378.5662748,0.00029722,7]
[425325238,1781696553000,-410.45976411,0.00029722,7]
[425325236,1781696553000,-222.28804575,0.00029722,7]
[425325237,1781696553000,-178.6763225,0.00029722,2]
[425325234,1781696553000,-433.39231965,0.00029722,5]
[425325306,1781696554000,-169.24411394,0.000299,2]
[425325303,1781696554000,-150.0,0.00029895,30]
[425325304,1781696554000,-201.61012856,0.00029897,30]
[425325307,1781696554000,-200.0,0.000299,10]
[425325305,1781696554000,-616.09402875,0.00029897,30]
[425325309,1781696554000,-230.362583,0.000299,7]
[425325300,1781696554000,-150.0,0.00029875,30]
[425325311,1781696554000,-230.362583,0.000299,7]
[425325312,1781696554000,-230.362583,0.000299,7]
[425325302,1781696554000,-150.0,0.00029892,30]
[425325310,1781696554000,-230.362583,0.000299,7]
[425325320,1781696554000,-150.0,0.00029935,30]
[425325313,1781696554000,-150.0,0.00029909,30]
[425325315,1781696554000,-201.61012856,0.00029927,30]
[425325317,1781696554000,-2214.19,0.00029932,2]
[425325321,1781696554000,-150.0,0.00029942,30]
[425325301,1781696554000,-150.0,0.00029891,30]
[425325316,1781696554000,-616.09402875,0.00029927,30]
[425325314,1781696554000,-150.0,0.00029923,30]
[425325318,1781696554000,-577.01,0.00029932,2]
[425325322,1781696554000,-150.0,0.00029954,30]
[425325323,1781696554000,-201.61012856,0.00029958,30]
[425325324,1781696554000,-616.09402875,0.00029958,30]
[425325319,1781696554000,-5917.04,0.00029932,2]
[425325308,1781696554000,-151.0,0.000299,7]
[425325297,1781696554000,-150.0,0.00029861,30]
[425325292,1781696554000,-200.0,0.00029833,2]
[425325293,1781696554000,-201.61012856,0.00029836,30]
[425325275,1781696554000,-150.0,0.00029768,30]
[425325273,1781696554000,-616.09402875,0.00029745,30]
[425325271,1781696554000,-150.0,0.00029742,30]
[425325272,1781696554000,-201.61012856,0.00029745,30]
[425325274,1781696554000,-150.0,0.0002976,30]
[425325270,1781696554000,-150.0,0.00029737,30]
[425325276,1781696554000,-150.0,0.00029775,30]
[425325287,1781696554000,-616.09402875,0.00029805,30]
[425325277,1781696554000,-201.61012856,0.00029775,30]
[425325286,1781696554000,-201.61012856,0.00029805,30]
[425325279,1781696554000,-616.09402875,0.00029775,30]
[425325281,1781696554000,-253.393133,0.00029788,10]
[425325282,1781696554000,-151.0,0.00029791,10]
[425325278,1781696554000,-150.0,0.00029775,30]
[425325283,1781696554000,-264.0,0.00029794,10]
[425325280,1781696554000,-150.0,0.00029787,30]
[425325284,1781696554000,-150.0,0.00029799,30]
[425325288,1781696554000,-150.0,0.00029808,30]
[425325290,1781696554000,-175.61,0.00029828,8]
[425325299,1781696554000,-616.09402875,0.00029866,30]
[425325334,1781696554000,-153.0,0.00029971,30]
[425325298,1781696554000,-201.61012856,0.00029866,30]
[425325295,1781696554000,-150.0,0.00029842,30]
[425325291,1781696554000,-150.0,0.0002983,30]
[425325296,1781696554000,-150.0,0.00029848,30]
[425325294,1781696554000,-616.09402875,0.00029836,30]
[425325326,1781696554000,-151.0,0.00029958,30]
[425325285,1781696554000,-150.0,0.00029804,30]
[425325325,1781696554000,-154.0,0.00029958,30]
[425325359,1781696554000,-616.09402875,0.00030018,30]
[425325358,1781696554000,-201.61012856,0.00030018,30]
[425325361,1781696554000,-392.13830426,0.00030029,120]
[425325360,1781696554000,-150.0,0.00030022,30]
[425325362,1781696554000,-3516.96981925,0.0003003,2]
[425325365,1781696554000,-150.0,0.00030043,30]
[425325363,1781696554000,-779.17888166,0.0003003,2]
[425325364,1781696554000,-5840.46742188,0.0003003,2]
[425325366,1781696554000,-150.0,0.00030048,30]
[425325370,1781696554000,-150.0,0.00030066,30]
[425325369,1781696554000,-388.96,0.00030053,30]
[425325368,1781696554000,-616.09402875,0.00030049,30]
[425325367,1781696554000,-201.61012856,0.00030049,30]
[425325376,1781696554000,-887.56,0.00030085,2]
[425325378,1781696554000,-151.0,0.000301,2]
[425325379,1781696554000,-1943.3,0.000301,7]
[425325373,1781696554000,-201.61012856,0.00030079,30]
[425325371,1781696554000,-150.0,0.00030076,30]
[425325377,1781696554000,-332.13,0.00030086,2]
[425325372,1781696554000,-150.0,0.00030079,30]
[425325374,1781696554000,-616.09402875,0.00030079,30]
[425325380,1781696554000,-474.95221639,0.000301,2]
[425325383,1781696554000,-601.0,0.0003011,2]
[425325382,1781696554000,-500.0,0.00030109,120]
[425325381,1781696554000,-1265.95,0.00030109,120]
[425325335,1781696554000,-153.0,0.00029971,30]
[425325375,1781696554000,-155.58,0.00030081,30]
[425325350,1781696554000,-316.0,0.0003,2]
[425325289,1781696554000,-836.22,0.00029828,8]
[425325351,1781696554000,-150.0,0.00030002,30]
[425325356,1781696554000,-350.0,0.00030011,15]
[425325329,1781696554000,-235.0,0.00029958,30]
[425325328,1781696554000,-152.0,0.00029958,30]
[425325331,1781696554000,-155.0,0.00029971,30]
[425325333,1781696554000,-467.0,0.00029971,30]
[425325327,1781696554000,-184.0,0.00029958,30]
[425325332,1781696554000,-413.0,0.00029971,30]
[425325337,1781696554000,-150.0,0.00029976,30]
[425325336,1781696554000,-1575.0,0.00029973,5]
[425325338,1781696554000,-150.0,0.00029979,30]
[425325339,1781696554000,-150.0,0.00029985,30]
[425325340,1781696554000,-273.0,0.00029986,2]
[425325341,1781696554000,-201.61012856,0.00029988,30]
[425325330,1781696554000,-151.0,0.00029971,30]
[425325342,1781696554000,-616.09402875,0.00029988,30]
[425325344,1781696554000,-5506.77466266,0.0003,7]
[425325354,1781696554000,-2958.52,0.00030009,2]
[425325355,1781696554000,-150.0,0.00030009,30]
[425325357,1781696554000,-150.0,0.00030016,30]
[425325353,1781696554000,-288.5,0.00030009,2]
[425325352,1781696554000,-1107.09,0.00030009,2]
[425325349,1781696554000,-168.0,0.0003,2]
[425325348,1781696554000,-300.0,0.0003,10]
[425325343,1781696554000,-2499.99,0.0003,2]
[425325345,1781696554000,-5506.77466266,0.0003,7]
[425325346,1781696554000,-2500.0,0.0003,2]
[425325347,1781696554000,-310.0,0.0003,2]
[425325400,1781696555000,-151.0,0.0003011,7]
[425325394,1781696555000,-151.0,0.0003011,7]
[425325397,1781696555000,-151.0,0.0003011,7]
[425325399,1781696555000,-151.0,0.0003011,7]
[425325398,1781696555000,-151.0,0.0003011,7]
[425325401,1781696555000,-152.0,0.00030121,7]
[425325396,1781696555000,-151.0,0.0003011,7]
[425325395,1781696555000,-151.0,0.0003011,7]
[425325389,1781696555000,-201.61012856,0.0003011,30]
[425325392,1781696555000,-269.44853607,0.0003011,30]
[425325391,1781696555000,-616.09402875,0.0003011,30]
[425325387,1781696555000,-150.0,0.0003011,30]
[425325385,1781696555000,-150.0,0.0003011,30]
[425325388,1781696555000,-150.0,0.0003011,30]
[425325384,1781696555000,-150.22442172,0.0003011,30]
[425325386,1781696555000,-150.00000001,0.0003011,30]
[425325393,1781696555000,-151.0,0.0003011,7]
[425325402,1781696555000,-233.37,0.00030126,30]
[425325390,1781696555000,-150.0,0.0003011,30]
[425325405,1781696555000,-151.0,0.00030127,7]
[425325403,1781696555000,-151.0,0.00030127,7]
[425325419,1781696555000,-1265.95,0.00030129,120]
[425325422,1781696555000,-849377.34514181,0.0003013,7]
[425325421,1781696555000,-300.0,0.00030129,10]
[425325420,1781696555000,-277.17960336,0.00030129,120]
[425325418,1781696555000,-1265.95,0.00030129,120]
[425325414,1781696555000,-1265.95,0.00030129,120]
[425325416,1781696555000,-1265.95,0.00030129,120]
[425325417,1781696555000,-1265.95,0.00030129,120]
[425325413,1781696555000,-1265.95,0.00030129,120]
[425325410,1781696555000,-1265.95,0.00030129,120]
[425325411,1781696555000,-1265.95,0.00030129,120]
[425325412,1781696555000,-1265.95,0.00030129,120]
[425325404,1781696555000,-151.0,0.00030127,7]
[425325409,1781696555000,-1265.95,0.00030129,120]
[425325408,1781696555000,-1265.95,0.00030129,120]
[425325406,1781696555000,-300.0,0.00030129,10]
[425325415,1781696555000,-1265.95,0.00030129,120]
[425325407,1781696555000,-1265.95,0.00030129,120]
[425325424,1781696556000,-11207.62453301,0.0003013,7]
[425325423,1781696556000,-2791.12071158,0.0003013,7]
[425325425,1781696556000,-411.15336399,0.0003013,7]
[425325426,1781696556000,-11875.3278262,0.0003013,7]
[425325427,1781696556000,-790.26349133,0.0003013,7]
[425325429,1781696556000,-1345.51205648,0.00015,2]
[425325428,1781696556000,301.0,0.00015,2]
[425325431,1781696556000,-880.95,0.00015,2]
[425325432,1781696556000,-18.52195592,0.00015,2]
[425325433,1781696556000,-6427.92468386,0.00015,2]
[425325435,1781696556000,-464588.96408113,0.0003013,7]
[425325434,1781696556000,-617.05,0.00027397,10]
[425325436,1781696556000,-1085.98999884,0.0003013,7]
[425325437,1781696556000,-491.06439782,0.0003013,7]
[425325430,1781696556000,-527.74130374,0.00015,2]
[425325438,1781696695000,151.0,0.0001463,2]
[425325439,1781696700000,-192.56185584,0.00014892,2]
[425325440,1781696702000,-497.70000355,0.00014891,2]
[425325441,1781696703000,151.0,0.00013972,2]
[425325442,1781696706000,-166.66,0.00014752,2]
[425325445,1781696706000,-7.01401184,0.00014917,2]
[425325444,1781696706000,-307.43814416,0.00014892,2]
[425325443,1781696706000,-150.0,0.0001489,2]
[425325447,1781696722000,-141.0,0.00014917,2]
[425325446,1781696722000,-160.0,0.00014891,2]
[425325449,1781696725000,-151.56971331,0.00014992,7]
[425325451,1781696725000,-166.66,0.00015373,2]
[425325450,1781696725000,-166.66,0.00015063,2]
[425325452,1781696725000,-153.17214253,0.00015684,2]
[425325448,1781696725000,-483.09814416,0.00014917,2]
[425325455,1781696743000,-151.0,0.00014891,2]
[425325454,1781696743000,-150.0,0.00014846,2]
[425325460,1781696744000,-76.52482236,0.00015994,2]
[425325459,1781696744000,-13.48785747,0.00015684,2]
[425325458,1781696744000,-805.97561214,0.00015081,2]
[425325457,1781696744000,-160.0,0.00014892,2]
[425325456,1781696744000,-65.17170803,0.00014891,2]
[425325462,1781696746000,-210.86482236,0.00016093,2]
[425325461,1781696746000,-90.13517764,0.00015994,2]
[425325465,1781696819000,-150.0,0.0001489,2]
[425325466,1781696819000,-12.11,0.0001489,2]
[425325467,1781696856000,-150.0,0.0001489,2]
[425325469,1781696876000,-39.13517764,0.0001489,2]
[425325471,1781696877000,-500.0,0.0001489,2]
[425325470,1781696877000,-98.75482236,0.0001489,2]
[425325474,1781696877000,-162.11,0.0001489,2]
[425325473,1781696877000,-44.66959232,0.0001489,2]
[425325472,1781696877000,-500.0,0.0001489,2]
[425325475,1781696878000,-216.17170803,0.0001489,2]
[425325476,1781696898000,-77.04869965,0.0001489,2]
[425325477,1781696898000,-72.95130035,0.0001489,2]
[425325478,1781696899000,-287.89,0.0001489,2]
[425325480,1781696900000,-148.73130035,0.0001489,2]
[425325479,1781696900000,-139.15869965,0.0001489,2]
[425325481,1781696901000,-351.26869965,0.0001489,2]
[425325482,1781696901000,-98.73130035,0.0001489,2]
[425325483,1781696902000,-401.26869965,0.0001489,2]
[425325484,1781696902000,-29.83538056,0.0001489,2]
[425325485,1781696903000,-137.89,0.00014891,2]
[425325486,1781696905000,-77.04869965,0.00014891,2]
[425325488,1781696947000,-500.0,0.00014889,2]